{"text_format":"1","workbook":"xlsx","n_sheets":1,"sheets":["Лист1"],"not_rendered":{"charts":0,"images":0,"macros":0,"external_links":0,"defined_names":1,"comments":0,"pivot_tables":0},"unopened":[],"bounds":{"document_bytes":16777216,"sheet_cells":100000,"rows_first":2000,"rows_last":500,"rows_between":2000,"halvings":0,"cell_chars":16384,"cell_head_chars":4096},"cells_cut":0,"cells_raw":0,"read":"whole","date_system":"1900"}

{"sheet":"Лист1","index":0,"n_rows":12,"n_cols":12,"rows_kept":12,"cut":false,"hidden":false,"merged":[[2,5,4,5]]}
[]
[null,null,null,null,null,null,null,"сумма"]
[1,"Услуги",1000,null,null,"Итог","RU",{"$f":"SUMIF($L$3:$L$12,\"₽\",$C$3:$C$12)","v":20000},null,null,{"$f":"LEFT(CELLFORMAT,1)","v":"€"},{"$f":"TRIM(RIGHT(CELLFORMAT,2))","v":"00"}]
[2,"Услуги",2000,null,null,null,"USD",{"$f":"SUMIF($K$3:$K$12,\"$\",$C$3:$C$12)","v":13000},null,null,{"$f":"LEFT(CELLFORMAT,1)","v":"$"},{"$f":"TRIM(RIGHT(CELLFORMAT,2))","v":"00"}]
[3,"Услуги",3000,null,null,null,"EUR",{"$f":"SUMIF($K$3:$K$12,\"€\",$C$3:$C$12)","v":22000},null,null,{"$f":"LEFT(CELLFORMAT,1)","v":" "},{"$f":"TRIM(RIGHT(CELLFORMAT,2))","v":"₽"}]
[4,"Услуги",4000,null,null,null,null,null,null,null,{"$f":"LEFT(CELLFORMAT,1)","v":"€"},{"$f":"TRIM(RIGHT(CELLFORMAT,2))","v":"00"}]
[5,"Услуги",5000,null,null,null,null,null,null,null,{"$f":"LEFT(CELLFORMAT,1)","v":"$"},{"$f":"TRIM(RIGHT(CELLFORMAT,2))","v":"00"}]
[6,"Услуги",6000,null,null,null,null,null,null,null,{"$f":"LEFT(CELLFORMAT,1)","v":"$"},{"$f":"TRIM(RIGHT(CELLFORMAT,2))","v":"00"}]
[7,"Услуги",7000,null,null,null,null,null,null,null,{"$f":"LEFT(CELLFORMAT,1)","v":" "},{"$f":"TRIM(RIGHT(CELLFORMAT,2))","v":"₽"}]
[8,"Услуги",8000,null,null,null,null,null,null,null,{"$f":"LEFT(CELLFORMAT,1)","v":"€"},{"$f":"TRIM(RIGHT(CELLFORMAT,2))","v":"00"}]
[9,"Услуги",9000,null,null,null,null,null,null,null,{"$f":"LEFT(CELLFORMAT,1)","v":"€"},{"$f":"TRIM(RIGHT(CELLFORMAT,2))","v":"00"}]
[10,"Услуги",10000,null,null,null,null,null,null,null,{"$f":"LEFT(CELLFORMAT,1)","v":" "},{"$f":"TRIM(RIGHT(CELLFORMAT,2))","v":"₽"}]